bitfinex/quotes_SOLUSD_20220119
["timestamp","ask_amount","ask_price","bid_price","bid_amount"]
[1642551704292,3.09,140.83,140.78,10.6524]
[1642551704819,36.99367071,140.82,140.78,10.6524]
[1642551704990,36.99367071,140.82,140.79,6.0]
[1642551705190,36.99367071,140.82,140.79,16.6516]
[1642551706992,36.99367071,140.82,140.79,6.0]
[1642551707899,6.06439994,140.81,140.75,72.73394296]
[1642551708093,6.06439994,140.81,140.76,6.0]
[1642551708291,6.06439994,140.81,140.76,6.25]
[1642551709496,6.06439994,140.81,140.77,10.6531]
[1642551709896,6.06439994,140.81,140.78,6.0]
[1642551710501,0.25,140.8,140.74,33.7761]
[1642551710699,3.091,140.8,140.74,10.6547]
[1642551711102,0.25,140.8,140.74,10.6547]
[1642551711302,47.42585978,140.78,140.74,10.6547]
[1642551711499,47.42585978,140.78,140.71,118.51]
[1642551711699,47.42585978,140.78,140.73,10.6561]
[1642551712098,47.42585978,140.78,140.74,6.0]
[1642551714228,47.42585978,140.78,140.75,0.25]
[1642551714427,24.94799875,140.81,140.75,0.25]
[1642551715230,22.9411,140.81,140.74,0.25]
[1642551715431,42.44693894,140.8,140.76,10.6537]
[1642551715631,42.44693894,140.8,140.77,6.0]
[1642551716131,6.06439994,140.79,140.77,6.0]
[1642551716534,3.03219997,140.79,140.77,6.0]
[1642551716933,42.44693894,140.8,140.77,6.0]
[1642551717234,2.841,140.82,140.77,16.6531]
[1642551717437,2.00689875,140.83,140.78,0.25]
[1642551717634,2.00689875,140.83,140.78,6.25]
[1642551718035,2.00689875,140.83,140.78,0.25]
[1642551718335,37.3028347,140.83,140.79,6.0]
[1642551718536,35.29593595,140.83,140.79,10.6512]
[1642551720241,2.00689875,140.85,140.8,0.25]
[1642551720442,2.00689875,140.85,140.81,10.6493]
[1642551721941,48.32727692,140.86,140.81,10.6493]
[1642551722143,0.25,140.85,140.81,10.6493]
[1642551722347,48.32727692,140.86,140.83,10.6485]
[1642551722545,2.00689875,140.86,140.83,10.6485]
[1642551722743,2.00689875,140.86,140.81,6.037]
[1642551723142,1.50689875,140.86,140.81,6.037]
[1642551723544,1.50689875,140.86,140.77,33.0941]
[1642551723743,62.4933246,140.87,140.81,16.6495]
[1642551723942,62.4933246,140.87,140.81,10.6495]
[1642551724143,3.80084314,140.9,140.82,1.47394296]
[1642551724344,3.80084314,140.9,140.83,10.21]
[1642551724543,3.80084314,140.9,140.84,6.0]
[1642551724743,3.80084314,140.9,140.85,81.72]
[1642551724943,3.80084314,140.9,140.86,10.6434]
[1642551725145,3.80084314,140.91,140.86,65.40317905]
[1642551725343,3.80084314,140.91,140.87,0.25]
[1642551725743,3.80084314,140.91,140.86,16.21]
[1642551726142,2.839,140.93,140.87,0.25]
[1642551726344,43.6335653,140.94,140.87,0.25]
[1642551727443,43.6335653,140.94,140.88,10.6436]
[1642551727844,43.6335653,140.94,140.89,0.25]
[1642551729046,43.6335653,140.94,140.87,0.25]
[1642551729446,43.6335653,140.94,140.89,10.6441]
[1642551730151,0.25,140.93,140.89,10.6441]
[1642551730349,0.25,140.93,140.86,16.21]
[1642551730552,2.838,140.92,140.86,6.0]
[1642551730753,0.25,140.91,140.85,10.6469]
[1642551730952,2.839,140.9,140.85,10.6469]
[1642551731180,40.86670186,140.89,140.83,10.21]
[1642551731380,2.839,140.88,140.83,10.21]
[1642551731580,2.839,140.88,140.83,20.858]
[1642551732583,40.86670186,140.89,140.83,20.858]
[1642551734384,2.839,140.92,140.84,0.25]
[1642551734585,2.839,140.92,140.85,10.6465]
[1642551734784,0.25,140.91,140.85,10.6465]
[1642551734987,3.089,140.91,140.85,10.6465]
[1642551735390,35.59099993,140.9,140.85,10.6465]
[1642551735889,0.25,140.89,140.85,10.6465]
[1642551737188,0.25,140.89,140.84,10.6477]
[1642551737387,35.59099993,140.9,140.84,16.6477]
[1642551737589,24.4474,140.93,140.85,39.88833732]
[1642551737787,24.4474,140.93,140.85,0.25]
[1642551738190,24.4474,140.93,140.84,6.0]
[1642551738489,2.839,140.92,140.84,6.0]
[1642551738889,41.43538069,140.91,140.84,6.0]
[1642551739090,41.68538069,140.91,140.84,6.0]
[1642551739592,41.68538069,140.91,140.81,10.21]
[1642551739793,26.2516,140.9,140.82,10.6486]
[1642551740291,0.25,140.89,140.82,10.6486]
[1642551740499,2.839,140.88,140.82,10.6486]
[1642551740692,0.25,140.87,140.81,10.21]
[1642551748502,0.25,140.88,140.81,10.21]
[1642551749703,2.84,140.87,140.81,10.21]
[1642551750104,0.25,140.86,140.81,10.21]
[1642551750504,49.29564894,140.86,140.81,10.21]
[1642551750706,49.04564894,140.86,140.81,10.21]
[1642551751606,2.84,140.87,140.81,10.21]
[1642551751804,2.84,140.89,140.81,10.21]
[1642551752006,26.2526,140.9,140.81,10.21]
[1642551752205,0.25,140.89,140.82,0.25]
[1642551752807,39.02008049,140.89,140.82,0.25]
[1642551753208,39.02008049,140.89,140.81,10.6491]
[1642551753407,41.86008049,140.89,140.81,10.6491]
[1642551753616,41.86008049,140.89,140.82,0.25]
[1642551753810,39.02008049,140.89,140.8,0.25]
[1642551754812,39.02008049,140.89,140.81,10.21]
[1642551755210,39.02008049,140.89,140.82,0.25]
[1642551755409,39.02008049,140.89,140.82,10.8988]
[1642551755612,39.02008049,140.89,140.83,32.96542304]
[1642551756913,39.02008049,140.89,140.82,10.8988]
[1642551757119,39.02008049,140.89,140.82,0.25]
[1642551757937,39.02008049,140.89,140.82,40.58513648]
[1642551758140,39.02008049,140.89,140.82,46.83513648]
[1642551758740,39.02008049,140.89,140.82,46.58513648]
[1642551758938,39.02008049,140.89,140.81,20.8597]
[1642551760237,39.02008049,140.89,140.82,0.25]
[1642551761638,41.85908049,140.89,140.82,0.25]
[1642551761841,41.60908049,140.89,140.82,0.25]
[1642551762143,2.839,140.89,140.82,10.8988]
[1642551762340,2.839,140.89,140.83,10.21]
[1642551762541,3.80084314,140.92,140.84,6.0]
[1642551762743,3.80084314,140.92,140.85,10.21]
[1642551763141,3.80084314,140.92,140.86,6.25]
[1642551763342,3.80084314,140.92,140.86,53.21055592]
[1642551763544,41.24193829,140.93,140.87,10.6436]
[1642551763741,41.24193829,140.93,140.88,0.25]
[1642551763943,41.24193829,140.93,140.88,6.25]
[1642551764642,41.24193829,140.93,140.88,0.25]
[1642551765044,41.24193829,140.93,140.87,6.25]
[1642551766754,0.25,140.92,140.87,6.0]
[1642551766945,3.088,140.92,140.86,10.21]
[1642551768446,13.7364,140.92,140.86,10.21]
[1642551770849,13.7364,140.92,140.83,10.21]
[1642551771149,37.5486,140.92,140.83,10.46]
[1642551776558,37.5486,140.92,140.83,21.108]
[1642551777554,37.5486,140.92,140.84,6.0]
[1642551781360,34.7106,140.92,140.84,6.0]
[1642551781763,24.0622,140.92,140.84,6.0]
[1642551782162,24.0622,140.92,140.84,16.6473]
[1642551782562,44.08093829,140.93,140.85,0.25]
[1642551782762,41.24193829,140.93,140.85,0.25]
[1642551783061,41.24193829,140.93,140.85,10.46]
[1642551783262,41.24193829,140.93,140.86,10.6457]
[1642551783460,41.24193829,140.93,140.86,16.6457]
[1642551783689,41.24193829,140.93,140.87,0.25]
[1642551783890,41.24193829,140.93,140.86,16.6457]
[1642551784190,41.24193829,140.93,140.87,0.25]
[1642551785696,0.25,140.92,140.87,0.25]
[1642551785896,41.24193829,140.93,140.87,0.25]
[1642551787496,41.24193829,140.93,140.87,10.8952]
[1642551787900,27.89054955,140.95,140.87,10.8952]
[1642551788098,0.25,140.94,140.87,10.8952]
[1642551789000,46.10051544,140.95,140.88,6.0]
[1642551789200,3.80084314,140.97,140.89,10.46]
[1642551789404,3.80084314,140.97,140.91,10.6414]
[1642551789602,3.80084314,140.97,140.89,10.46]
[1642551789801,6.63884314,140.99,140.9,6.0]
[1642551790000,0.25,140.96,140.89,10.46]
[1642551792506,0.25,140.96,140.89,21.1036]
[1642551794305,0.25,140.96,140.89,10.46]
[1642551794905,2.838,140.95,140.89,10.21]
[1642551795105,2.838,140.95,140.86,10.21]
[1642551795308,37.00851435,140.93,140.83,10.21]
[1642551795506,2.839,140.92,140.84,16.6468]
[1642551795705,26.8013,140.92,140.84,16.6468]
[1642551796707,26.8013,140.92,140.85,0.25]
[1642551798410,26.8013,140.92,140.85,10.8965]
[1642551799615,23.9623,140.92,140.85,10.8965]
[1642551800013,23.9623,140.92,140.84,16.6474]
[1642551800215,2.839,140.91,140.84,16.6474]
[1642551800615,0.25,140.9,140.84,16.6474]
[1642551802017,2.839,140.91,140.85,0.25]
[1642551802219,23.7123,140.92,140.85,0.25]
[1642551802417,23.7123,140.92,140.85,10.8965]
[1642551802617,0.25,140.91,140.85,10.6465]
[1642551806924,0.25,140.91,140.84,16.6475]
[1642551807124,0.25,140.91,140.84,26.8575]
[1642551810852,0.25,140.91,140.85,0.25]
[1642551811050,23.7123,140.92,140.85,10.8962]
[1642551811249,0.25,140.91,140.85,10.6462]
[1642551811648,23.7123,140.92,140.85,10.6462]
[1642551813154,0.25,140.91,140.85,10.6462]
[1642551813352,75.0,140.89,140.8,10.21]
[1642551813552,77.26,140.88,140.77,55.60050542]
[1642551813752,10.87905272,140.88,140.74,10.21]
[1642551813954,25.99065272,140.87,140.74,14.224066]
[1642551814153,3.09,140.86,140.74,14.224066]
[1642551814355,39.9379303,140.85,140.75,47.28451775]
[1642551814556,74.8011303,140.85,140.75,47.28451775]
[1642551814758,0.25,140.84,140.75,47.28451775]
[1642551815455,2.84,140.86,140.75,47.28451775]
[1642551815656,0.25,140.85,140.76,16.46]
[1642551815855,0.25,140.85,140.76,41.3549]
[1642551816857,0.25,140.86,140.76,41.3549]
[1642551817056,3.09,140.86,140.76,41.3549]
[1642551817473,3.09,140.86,140.76,52.0071]
[1642551817677,24.5692,140.85,140.76,52.0071]
[1642551817877,24.5692,140.85,140.76,10.21]
[1642551817878,47.67399016,140.84,140.76,10.21]
[1642551818075,2.84,140.83,140.76,10.21]
[1642551818276,0.25,140.82,140.76,10.21]
[1642551825913,3.091,140.82,140.76,10.21]
[1642551826118,38.61588191,140.81,140.76,10.21]
[1642551826316,0.25,140.8,140.76,10.21]
[1642551826514,0.25,140.8,140.73,73.84508649]
[1642551826722,2.841,140.82,140.76,47.42933915]
[1642551826915,24.3962,140.83,140.76,47.42933915]
[1642551827716,34.83590207,140.82,140.74,16.9038]
[1642551828123,0.25,140.81,140.74,16.9038]
[1642551828824,0.25,140.81,140.75,40.36856993]
[1642551829320,0.25,140.81,140.74,16.9038]
[1642551829919,34.83590207,140.82,140.74,16.9038]
[1642551830117,0.25,140.81,140.74,16.9038]
[1642551831019,0.25,140.81,140.74,10.9038]
[1642551831220,0.25,140.81,140.7,24.9954]
[1642551831419,2.841,140.8,140.7,10.21]
[1642551831618,2.841,140.8,140.68,24.0634]
[1642551831619,23.9054,140.79,140.68,24.0634]
[1642551831819,2.842,140.78,140.68,24.0634]
[1642551832219,42.49525421,140.77,140.66,14.224066]
[1642551832518,2.842,140.76,140.66,10.21]
[1642551832718,0.25,140.75,140.66,10.21]
[1642551832918,2.842,140.74,140.65,4.014066]
[1642551833119,13.5046,140.74,140.65,4.014066]
[1642551833323,0.25,140.73,140.63,20.8723]
[1642551833521,2.843,140.72,140.64,6.0]
[1642551833723,48.00654393,140.71,140.64,46.04958883]
[1642551834219,48.00654393,140.71,140.65,0.25]
[1642551835120,48.00654393,140.71,140.64,46.04958883]
[1642551835322,48.00654393,140.71,140.64,40.04958883]
[1642551835723,48.00654393,140.71,140.63,20.8723]
[1642551835925,48.00654393,140.71,140.63,10.21]
[1642551836222,2.843,140.7,140.63,10.21]
[1642551836820,2.843,140.7,140.63,51.50339819]
[1642551837022,0.25,140.69,140.63,51.50339819]
[1642551837424,0.25,140.69,140.63,41.29339819]
[1642551838222,0.25,140.7,140.63,41.29339819]
[1642551838421,0.25,140.7,140.63,51.95659819]
[1642551838627,0.25,140.71,140.64,6.0]
[1642551838823,0.25,140.71,140.64,6.25]
[1642551839223,2.843,140.72,140.64,6.25]
[1642551839425,2.843,140.74,140.64,6.25]
[1642551839627,23.415,140.75,140.64,17.1722]
[1642551840326,63.4730718,140.75,140.64,17.1722]
[1642551840729,0.25,140.74,140.64,17.1722]
[1642551840929,0.25,140.74,140.65,71.26]
[1642551841135,0.25,140.74,140.67,43.46215393]
[1642551841328,0.25,140.74,140.68,10.6591]
[1642551841528,0.25,140.74,140.68,10.9091]
[1642551842529,0.25,140.74,140.68,9.9091]
[1642551842729,0.25,140.74,140.68,9.6591]
[1642551842929,0.25,140.74,140.67,54.12235393]
[1642551843129,2.842,140.73,140.67,54.12235393]
[1642551843330,3.092,140.74,140.67,54.12235393]
[1642551843737,2.842,140.74,140.67,54.12235393]
[1642551843931,23.415,140.75,140.67,54.12235393]
[1642551844233,2.842,140.78,140.68,0.25]
[1642551844432,2.842,140.78,140.69,10.6583]
[1642551844632,44.78334318,140.78,140.7,43.21092873]
[1642551844831,2.842,140.78,140.7,43.46092873]
[1642551845031,27.32511693,140.79,140.71,6.25]
[1642551845231,0.25,140.78,140.71,6.25]
[1642551845431,2.842,140.8,140.71,6.25]
[1642551845631,1.93027214,140.81,140.71,35.4475]
[1642551846235,2.841,140.83,140.71,35.4475]
[1642551846432,73.33213937,140.84,140.72,71.26]
[1642551846632,71.20861369,140.85,140.76,10.6529]
[1642551846833,71.20861369,140.85,140.77,43.21092873]
[1642551847033,69.27834155,140.85,140.77,43.46092873]
[1642551847634,0.25,140.84,140.77,43.46092873]
[1642551849935,0.25,140.84,140.77,54.11352873]
[1642551850535,0.25,140.84,140.78,6.0]
[1642551850736,0.25,140.84,140.79,0.25]
[1642551851343,0.25,140.84,140.79,10.9007]
[1642551851536,0.25,140.84,140.8,43.46215393]
[1642551853240,0.25,140.84,140.79,10.9007]
[1642551853658,0.25,140.84,140.79,0.25]
[1642551854042,0.25,140.84,140.79,6.25]
[1642551854442,42.13309548,140.84,140.79,6.25]
[1642551854642,42.13309548,140.84,140.79,0.25]
[1642551854871,41.88309548,140.84,140.79,0.25]
[1642551855072,41.88309548,140.84,140.79,36.61685633]
[1642551855575,41.88309548,140.84,140.79,0.25]
[1642551857273,39.38309548,140.84,140.79,0.25]
[1642551857773,0.25,140.83,140.78,55.86964424]
[1642551858576,1.63989049,140.85,140.79,0.25]
[1642551858778,1.63989049,140.85,140.8,10.6492]
[1642551859079,47.0658,140.89,140.8,10.6492]
[1642551859277,49.9058,140.89,140.81,0.25]
[1642551859476,2.84,140.89,140.81,50.20523842]
[1642551859677,1.93027214,140.9,140.81,121.72523842]
[1642551860076,79.28256577,140.92,140.81,121.72523842]
[1642551860276,3.37466577,140.92,140.81,121.72523842]
[1642551860482,39.20378457,140.91,140.81,131.93523842]
[1642551860676,42.29278457,140.91,140.81,131.93523842]
[1642551861077,2.839,140.91,140.82,10.6483]
[1642551861280,1.44439363,140.92,140.83,0.25]
[1642551861478,1.44439363,140.92,140.84,10.21]
[1642551861679,1.44439363,140.92,140.85,0.25]
[1642551861879,83.90135713,140.94,140.85,10.46]
[1642551862078,83.90135713,140.94,140.85,55.67784424]
[1642551862277,83.90135713,140.94,140.88,38.86447827]
[1642551862476,83.90135713,140.94,140.88,47.11747827]
[1642551862677,81.97108499,140.94,140.89,0.25]
[1642551863478,81.97108499,140.94,140.89,10.8925]
[1642551863878,37.79805911,140.96,140.89,10.8925]
[1642551864283,2.838,140.98,140.89,10.8925]
[1642551864478,103.7864,140.99,140.89,18.3535]
[1642551864679,103.7864,140.99,140.89,89.6135]
[1642551865078,0.25,140.98,140.89,89.8735]
[1642551865278,39.72025527,140.98,140.89,89.8735]
[1642551865480,0.25,140.98,140.89,89.8735]
[1642551865678,0.25,140.98,140.92,10.6405]
[1642551865879,0.25,140.98,140.92,81.9005]
[1642551866081,26.7941,140.99,140.93,0.25]
[1642551866279,4.76727214,141.01,140.93,0.25]
[1642551866478,1.93027214,141.01,140.94,110.08599722]
[1642551866678,97.3997038,141.02,140.95,0.25]
[1642551866883,59.173257,141.02,140.95,6.25]
[1642551867479,1.93027214,141.02,140.95,0.25]
[1642551867679,24.8077,141.04,140.95,0.25]
[1642551867881,2.836,141.03,140.95,0.25]
[1642551868283,2.836,141.03,140.94,0.51]
[1642551868484,2.836,141.03,140.95,10.6383]
[1642551868887,40.10412651,141.02,140.95,10.6383]
[1642551869283,40.10412651,141.02,140.93,10.21]
[1642551869486,2.837,141.01,140.93,10.21]
[1642551869685,9.087,141.01,140.93,10.21]
[1642551871386,10.87605272,141.01,140.89,10.21]
[1642551871585,34.6833,141.0,140.9,10.6421]
[1642551871789,45.54896018,140.99,140.9,10.6421]
[1642551871988,51.54896018,140.99,140.85,44.4954475]
[1642551872185,46.1238,140.98,140.85,44.4954475]
[1642551872385,2.838,140.97,140.84,10.21]
[1642551872585,9.088,140.97,140.84,10.21]
[1642551872986,9.088,140.97,140.85,0.25]
[1642551873387,35.11585513,140.96,140.85,0.25]
[1642551873616,8.838,140.95,140.85,10.6465]
[1642551873788,9.088,140.95,140.85,10.6465]
[1642551874989,8.838,140.95,140.85,10.6465]
[1642551875187,8.838,140.95,140.86,0.25]
[1642551875387,6.0,140.95,140.86,0.25]
[1642551875587,16.6465,140.95,140.86,0.25]
[1642551876389,0.25,140.94,140.86,0.25]
[1642551876588,3.088,140.94,140.86,38.39707026]
[1642551876787,3.088,140.94,140.86,49.04267026]
[1642551876986,35.11585513,140.96,140.86,49.04267026]
[1642551877191,0.25,140.95,140.86,59.51267026]
[1642551877391,0.25,140.95,140.86,59.25267026]
[1642551877587,35.11585513,140.96,140.86,59.25267026]
[1642551878589,25.11585513,140.96,140.86,59.25267026]
[1642551878988,0.25,140.95,140.86,59.25267026]
[1642551879190,0.25,140.95,140.86,20.8556]
[1642551879390,3.088,140.95,140.86,10.21]
[1642551879588,19.7342,140.95,140.86,10.21]
[1642551880590,19.7342,140.95,140.85,42.20802345]
[1642551881191,19.7342,140.95,140.86,0.25]
[1642551881591,19.7342,140.95,140.85,52.85442345]
[1642551885197,19.7342,140.95,140.86,0.25]
[1642551888205,19.7342,140.95,140.85,10.6464]
[1642551888630,44.39467214,140.95,140.85,10.6464]
[1642551889528,33.74847214,140.95,140.86,10.8953]
[1642551889928,33.74847214,140.95,140.86,52.82185193]
[1642551890331,33.74847214,140.95,140.86,10.8953]
[1642551895035,30.91047214,140.95,140.86,10.8953]
[1642551897237,41.01170202,140.93,140.86,10.8953]
[1642551897438,41.01170202,140.93,140.87,49.48471483]
[1642551897638,0.25,140.92,140.87,49.48471483]
[1642551898041,41.01170202,140.93,140.87,49.48471483]
[1642551898237,41.01170202,140.93,140.88,0.25]
[1642551898437,41.01170202,140.93,140.88,10.8935]
[1642551899741,1.93027214,140.96,140.88,18.9525]
[1642551899938,1.93027214,140.96,140.89,10.21]
[1642551900147,1.93027214,140.96,140.91,10.6401]
[1642551900338,1.93027214,140.96,140.91,27.0771]
[1642551900540,1.93027214,140.96,140.92,0.25]
[1642551900740,1.93027214,140.98,140.92,38.83418866]
[1642551902439,1.93027214,140.98,140.93,10.6391]
[1642551902741,39.01102181,140.99,140.93,10.6391]
[1642551903242,0.25,140.98,140.89,10.21]
[1642551903441,9.087,140.98,140.89,10.21]
[1642551903844,10.87605272,140.98,140.89,10.21]
[1642551904048,45.54675272,140.98,140.89,10.21]
[1642551904449,36.21734811,140.96,140.89,10.21]
[1642551904645,2.838,140.95,140.89,10.21]
[1642551904847,9.088,140.95,140.89,10.21]
[1642551905244,11.01827214,140.95,140.89,10.21]
[1642551906647,11.01827214,140.95,140.87,10.645]
[1642551906847,11.01827214,140.95,140.86,10.6459]
[1642551907047,11.01827214,140.95,140.86,10.8959]
[1642551907447,33.51887214,140.95,140.86,10.8959]
[1642551908147,24.43087214,140.95,140.86,82.1559]
[1642551908349,24.43087214,140.95,140.87,10.21]
[1642551908548,24.43087214,140.95,140.89,10.6432]
[1642551908748,0.25,140.94,140.87,10.21]
[1642551909251,0.25,140.94,140.88,0.25]
[1642551909648,0.25,140.94,140.88,41.31948885]
[1642551910049,0.25,140.94,140.88,51.96378885]
[1642551910750,22.5006,140.95,140.88,51.96378885]
[1642551911553,1.93027214,140.97,140.88,51.96378885]
[1642551911752,1.93027214,140.97,140.89,16.21]
[1642551912153,1.93027214,140.97,140.91,10.6403]
[1642551912351,28.05176238,141.0,140.91,10.6403]
[1642551912552,47.58845142,140.99,140.92,42.19051735]
[1642551914256,47.58845142,140.99,140.93,10.6399]
[1642551914756,3.54836238,141.0,140.94,0.25]
[1642551915256,1.93027214,141.0,140.95,10.6391]
[1642551915654,1.93027214,141.0,140.96,48.30894881]
[1642551915855,1.93027214,141.0,140.96,48.05894881]
[1642551916060,1.93027214,141.03,140.96,48.05894881]
[1642551916261,1.93027214,141.03,140.97,0.25]
[1642551916656,1.93027214,141.03,140.96,48.05894881]
[1642551917256,1.93027214,141.03,140.97,10.8868]
[1642551917458,1.93027214,141.04,140.97,16.8868]
[1642551917659,1.93027214,141.04,140.97,17.1468]
[1642551918258,1.93027214,141.04,140.97,88.4068]
[1642551919257,1.93027214,141.05,140.97,98.6168]
[1642551919461,1.93027214,141.05,140.97,105.1678]
[1642551919859,1.93027214,141.05,140.97,106.63157586]
[1642551920257,46.63126263,141.07,140.97,106.63157586]
[1642551920459,4.76627214,141.08,140.97,105.1678]
[1642551920658,1.93027214,141.08,140.97,106.62797]
[1642551921259,1.93027214,141.09,140.97,240.66636721]
[1642551922463,2.836,141.13,140.97,251.62536824]
[1642551922464,4.76627214,141.13,140.97,251.62536824]
[1642551922659,4.76627214,141.13,140.97,263.96127972]
[1642551922868,6.0,141.12,140.97,263.96127972]
[1642551923262,6.0,141.12,140.99,127.61]
[1642551923460,6.0,141.12,141.02,10.6274]
[1642551923661,6.0,141.12,141.04,44.33873725]
[1642551923863,6.0,141.12,141.05,10.21]
[1642551924066,6.0,141.12,141.05,16.46]
[1642551924262,6.0,141.12,141.05,10.46]
[1642551925063,48.80896209,141.13,141.05,21.0875]
[1642551925464,2.835,141.12,141.05,21.0875]
[1642551925663,2.834,141.14,141.06,6.0]
[1642551925864,1.93027214,141.15,141.07,71.26]
[1642551926066,4.76427214,141.16,141.07,71.51]
[1642551926366,40.04471,141.16,141.08,47.95127596]
[1642551926565,40.04471,141.16,141.08,125.21127596]
[1642551926763,40.04471,141.16,141.09,0.25]
[1642551926965,38.11443786,141.16,141.09,0.25]
[1642551927465,6.0,141.15,140.98,23.4748]
[1642551927663,2.835,141.14,141.01,127.61]
[1642551927863,2.835,141.14,141.02,10.21]
[1642551928063,0.25,141.13,141.02,16.21]
[1642551928264,2.835,141.12,141.02,16.21]
[1642551928463,2.835,141.12,141.04,35.432]
[1642551928663,2.835,141.14,141.05,10.21]
[1642551929266,0.25,141.13,141.06,0.25]
[1642551929464,2.834,141.12,141.06,46.85068464]
[1642551930164,2.834,141.12,141.07,10.6292]
[1642551930365,2.834,141.14,141.07,10.6292]
[1642551930567,3.084,141.14,141.08,0.25]
[1642551930767,3.084,141.14,141.07,10.6292]
[1642551930965,3.084,141.14,141.05,10.21]
[1642551931174,6.0,141.13,141.05,10.21]
[1642551931468,2.835,141.12,141.05,10.21]
[1642551931666,3.085,141.12,141.05,10.21]
[1642551931869,45.4070073,141.11,141.05,10.21]
[1642551932268,0.25,141.1,141.05,10.21]
[1642551932470,3.085,141.1,141.05,10.21]
[1642551934768,39.4070073,141.11,141.05,10.21]
[1642551935771,0.25,141.1,141.05,10.21]
[1642551937174,39.4070073,141.11,141.05,10.21]
[1642551937399,2.835,141.13,141.05,20.8414]
[1642551937700,4.76527214,141.14,141.06,0.25]
[1642551937897,1.93027214,141.14,141.06,0.25]
[1642551938099,0.25,141.13,141.05,10.21]
[1642551938297,36.32265218,141.12,141.05,10.21]
[1642551939398,36.32265218,141.12,141.05,20.8408]
[1642551940100,0.25,141.11,141.05,20.8408]
[1642551940299,36.32265218,141.12,141.06,0.25]
[1642551941297,36.32265218,141.12,141.06,10.6307]
[1642551941498,3.085,141.11,141.05,10.21]
[1642551943802,5.01527214,141.11,141.01,10.21]
[1642551943999,6.0,141.1,141.01,10.21]
[1642551944199,3.085,141.09,141.01,10.21]
[1642551944903,5.01527214,141.09,141.02,41.38607505]
[1642551945907,36.39231322,141.08,141.02,41.38607505]
[1642551947507,38.32258536,141.08,141.01,10.21]
[1642551947710,2.835,141.07,141.02,0.25]
[1642551947908,1.93027214,141.08,141.02,5.673]
[1642551948309,1.93027214,141.07,141.02,5.673]
[1642551948812,1.93027214,141.07,141.03,46.29246865]
[1642551949210,1.93027214,141.07,141.04,0.25]
[1642551949418,1.93027214,141.1,141.04,0.25]
[1642551950216,1.93027214,141.1,141.04,10.6316]
[1642551951015,1.93027214,141.09,141.04,10.6316]
[1642551952716,1.93027214,141.1,141.04,10.6316]
[1642551952914,2.18027214,141.1,141.04,10.6316]
[1642551954519,1.93027214,141.09,141.04,10.6316]
[1642551955615,1.93027214,141.09,141.05,0.25]
[1642551955816,1.93027214,141.09,141.06,10.6306]
[1642551956316,1.93027214,141.1,141.06,10.6306]
[1642551956517,1.93027214,141.1,141.06,47.44071873]
[1642551956719,1.93027214,141.1,141.06,36.81011873]
[1642551957219,1.93027214,141.1,141.06,47.44081873]
[1642551957419,1.93027214,141.1,141.07,0.25]
[1642551957616,1.93027214,141.09,141.06,44.00811873]
[1642551958420,1.93027214,141.11,141.06,44.00811873]
[1642551958819,1.93027214,141.11,141.06,7.198]
[1642551959020,1.93027214,141.11,141.04,10.21]
[1642551959220,49.54972196,141.12,141.05,0.25]
[1642551959221,1.93027214,141.1,141.05,0.25]
[1642551959620,1.93027214,141.1,141.04,10.21]
[1642551959820,40.30729596,141.09,141.04,10.21]